[Event "*** Titled Tuesday 3|2 Blitz"]
[Site "Chess.com"]
[Date "2016.07.05"]
[Round "3"]
[White "kxt100"]
[Black "mortalbovine"]
[Result "0-1"]
[WhiteElo "1987"]
[BlackElo "1697"]
[TimeControl "180+2"]
[EndTime "11:35:05 PDT"]
[Termination "mortalbovine won by checkmate"]

1. d4 {[%clk 0:02:56.8]} 1... d5 {[%clk 0:03:00.5]} 2. c4 {[%clk 0:02:55.9]}
2... e5 {[%clk 0:03:01.6]} 3. dxe5 {[%clk 0:02:54.2]} 3... d4 {[%clk 0:03:03.5]}
4. Nf3 {[%clk 0:02:54.2]} 4... Nc6 {[%clk 0:03:04.3]} 5. a3 {[%clk 0:02:53.3]}
5... Nge7 {[%clk 0:03:04.5]} 6. b4 {[%clk 0:02:40.5]} 6... Ng6 {[%clk
0:03:00.9]} 7. Bb2 {[%clk 0:02:37.1]} 7... Ngxe5 {[%clk 0:02:56.8]} 8. Nxe5
{[%clk 0:02:34.7]} 8... Nxe5 {[%clk 0:02:57.5]} 9. e3 {[%clk 0:02:32.8]} 9... c5
{[%clk 0:02:36.7]} 10. bxc5 {[%clk 0:02:22.6]} 10... Bxc5 {[%clk 0:02:36.6]} 11.
exd4 {[%clk 0:02:19.5]} 11... Bb6 {[%clk 0:02:22.8]} 12. Be2 {[%clk 0:01:53]}
12... Ng6 {[%clk 0:02:07.1]} 13. O-O {[%clk 0:01:51.2]} 13... O-O {[%clk
0:02:07.7]} 14. Bf3 {[%clk 0:01:45.4]} 14... Nh4 {[%clk 0:01:56.5]} 15. Be4
{[%clk 0:01:40.3]} 15... Bf5 {[%clk 0:01:51.1]} 16. Bxf5 {[%clk 0:01:34.8]}
16... Nxf5 {[%clk 0:01:53]} 17. d5 {[%clk 0:01:35.1]} 17... Rc8 {[%clk
0:01:41.6]} 18. Nd2 {[%clk 0:01:32.9]} 18... Qg5 {[%clk 0:01:40.4]} 19. Bc3
{[%clk 0:01:07.1]} 19... Nh4 {[%clk 0:01:33.3]} 20. g3 {[%clk 0:00:58.4]} 20...
Nf5 {[%clk 0:01:26.6]} 21. a4 {[%clk 0:00:41.7]} 21... Nxg3 {[%clk 0:01:16.4]}
22. hxg3 {[%clk 0:00:41.5]} 22... Qxg3+ {[%clk 0:01:17.2]} 23. Kh1 {[%clk
0:00:42]} 23... Qh3+ {[%clk 0:01:10.3]} 24. Kg1 {[%clk 0:00:40.7]} 24... Qg3+
{[%clk 0:01:11.2]} 25. Kh1 {[%clk 0:00:32.3]} 25... Qh3+ {[%clk 0:01:12.6]} 26.
Kg1 {[%clk 0:00:32.4]} 26... Qxc3 {[%clk 0:01:13.6]} 27. Ne4 {[%clk 0:00:25.7]}
27... Qe5 {[%clk 0:01:03.4]} 28. Qf3 {[%clk 0:00:17.8]} 28... Rxc4 {[%clk
0:00:58.9]} 29. Rfe1 {[%clk 0:00:17.5]} 29... Qc7 {[%clk 0:00:32.3]} 30. d6
{[%clk 0:00:14.3]} 30... Qd7 {[%clk 0:00:26]} 31. Qg3 {[%clk 0:00:10.3]} 31...
Kh8 {[%clk 0:00:21.8]} 32. Kg2 {[%clk 0:00:09.7]} 32... Qc6 {[%clk 0:00:17.6]}
33. f3 {[%clk 0:00:08.4]} 33... Rc2+ {[%clk 0:00:17.9]} 34. Kh1 {[%clk
0:00:05.8]} 34... Qd7 {[%clk 0:00:16.8]} 35. Ng5 {[%clk 0:00:03.7]} 35... Rc6
{[%clk 0:00:10.6]} 36. Qh4 {[%clk 0:00:04.2]} 36... h6 {[%clk 0:00:11.2]} 37.
Re7 {[%clk 0:00:04.5]} 37... Qf5 {[%clk 0:00:07.6]} 38. Nxf7+ {[%clk 0:00:05.4]}
38... Rxf7 {[%clk 0:00:08]} 39. Qe4 {[%clk 0:00:05.7]} 39... Qh5+ {[%clk
0:00:07.6]} 40. Kg2 {[%clk 0:00:05]} 40... Rxe7 {[%clk 0:00:07.8]} 41. dxe7
{[%clk 0:00:03.9]} 41... Rc2+ {[%clk 0:00:09]} 42. Kf1 {[%clk 0:00:03.2]} 42...
Qh1# {[%clk 0:00:09.8]} 0-1

[Event "*** Titled Tuesday 3|2 Blitz"]
[Site "Chess.com"]
[Date "2016.07.05"]
[Round "3"]
[White "kpio91"]
[Black "olgerts_indricans"]
[Result "1-0"]
[WhiteElo "2548"]
[BlackElo "2345"]
[TimeControl "180+2"]
[EndTime "11:35:10 PDT"]
[Termination "kpio91 won by checkmate"]

1. e4 {[%clk 0:03:01.9]} 1... c5 {[%clk 0:03:00.7]} 2. Nf3 {[%clk 0:03:02.5]}
2... e6 {[%clk 0:03:01.8]} 3. g3 {[%clk 0:03:02.6]} 3... Nf6 {[%clk 0:02:59.6]}
4. Qe2 {[%clk 0:03:01.2]} 4... Nc6 {[%clk 0:03:00.2]} 5. Bg2 {[%clk 0:03:02.3]}
5... Be7 {[%clk 0:03:00.7]} 6. O-O {[%clk 0:03:03.4]} 6... O-O {[%clk
0:03:01.2]} 7. c3 {[%clk 0:03:03.6]} 7... d6 {[%clk 0:03:00.4]} 8. d4 {[%clk
0:03:03.8]} 8... cxd4 {[%clk 0:03:01.4]} 9. cxd4 {[%clk 0:03:05]} 9... d5 {[%clk
0:03:02.7]} 10. e5 {[%clk 0:03:04.9]} 10... Ne4 {[%clk 0:03:04]} 11. Nbd2 {[%clk
0:03:05.6]} 11... Nxd2 {[%clk 0:03:04.5]} 12. Bxd2 {[%clk 0:03:06.5]} 12... Qb6
{[%clk 0:03:03.4]} 13. Be3 {[%clk 0:03:03.4]} 13... Bd7 {[%clk 0:03:00.3]} 14.
h4 {[%clk 0:02:44]} 14... Rac8 {[%clk 0:02:55.7]} 15. Rfd1 {[%clk 0:02:34.4]}
15... Na5 {[%clk 0:02:40.9]} 16. Ne1 {[%clk 0:02:30.9]} 16... Bb5 {[%clk
0:02:37.6]} 17. Qg4 {[%clk 0:02:31.9]} 17... Nc4 {[%clk 0:02:35.8]} 18. Bh6
{[%clk 0:02:30.5]} 18... g6 {[%clk 0:02:33]} 19. Bxf8 {[%clk 0:02:30.4]} 19...
Bxf8 {[%clk 0:02:34.9]} 20. b3 {[%clk 0:02:29.7]} 20... h5 {[%clk 0:02:32.6]}
21. Qf4 {[%clk 0:02:18.4]} 21... Na5 {[%clk 0:02:22.2]} 22. Rdc1 {[%clk
0:02:19.2]} 22... Nc6 {[%clk 0:02:14.4]} 23. Nf3 {[%clk 0:02:18.3]} 23... Ba3
{[%clk 0:02:06.7]} 24. Rc2 {[%clk 0:02:17.3]} 24... Bd3 {[%clk 0:02:06.9]} 25.
Rd2 {[%clk 0:02:01]} 25... Bf5 {[%clk 0:02:05.9]} 26. Kh2 {[%clk 0:02:02.3]}
26... Bb4 {[%clk 0:02:03.7]} 27. Rdd1 {[%clk 0:02:02.9]} 27... Bc3 {[%clk
0:02:00.1]} 28. Rac1 {[%clk 0:02:03.2]} 28... Bb2 {[%clk 0:02:00.9]} 29. Rc5
{[%clk 0:01:46.5]} 29... Ba3 {[%clk 0:02:00.4]} 30. Rc3 {[%clk 0:01:46.5]} 30...
Qb4 {[%clk 0:01:40.5]} 31. Re3 {[%clk 0:01:42.8]} 31... Bb2 {[%clk 0:01:37.2]}
32. Bh3 {[%clk 0:01:40.4]} 32... Bc2 {[%clk 0:01:30.9]} 33. Rd2 {[%clk
0:01:31.3]} 33... Ne7 {[%clk 0:01:25.2]} 34. Ree2 {[%clk 0:01:31.6]} 34... Bc1
{[%clk 0:01:12.9]} 35. Qf6 {[%clk 0:01:16.3]} 35... Bxd2 {[%clk 0:01:09.2]} 36.
Rxd2 {[%clk 0:01:17.5]} 36... Bf5 {[%clk 0:01:10]} 37. Ng5 {[%clk 0:00:49.6]}
37... Rf8 {[%clk 0:01:07.7]} 38. Rd1 {[%clk 0:00:41.7]} 38... Bxh3 {[%clk
0:01:06.3]} 39. Kxh3 {[%clk 0:00:41.6]} 39... Nf5 {[%clk 0:00:56.4]} 40. Rc1
{[%clk 0:00:21.7]} 40... Qxd4 {[%clk 0:00:51.4]} 41. Rc8 {[%clk 0:00:22.3]}
41... Nh6 {[%clk 0:00:26.3]} 42. Rxf8+ {[%clk 0:00:19.2]} 42... Kxf8 {[%clk
0:00:28.2]} 43. Qh8+ {[%clk 0:00:20.8]} 43... Ng8 {[%clk 0:00:28.9]} 44. Nh7+
{[%clk 0:00:20.8]} 44... Ke7 {[%clk 0:00:27.5]} 45. Qxg8 {[%clk 0:00:22.5]}
45... Qg4+ {[%clk 0:00:16.2]} 46. Kh2 {[%clk 0:00:23.3]} 46... Qf3 {[%clk
0:00:15.4]} 47. Qf8+ {[%clk 0:00:23.9]} 47... Kd7 {[%clk 0:00:16.4]} 48. Nf6+
{[%clk 0:00:25.6]} 48... Kc6 {[%clk 0:00:17.6]} 49. Qd6+ {[%clk 0:00:20.9]}
49... Kb5 {[%clk 0:00:18.7]} 50. a4+ {[%clk 0:00:22.6]} 50... Ka5 {[%clk
0:00:19]} 51. Qc5+ {[%clk 0:00:24.3]} 51... Ka6 {[%clk 0:00:20.2]} 52. Qb5#
{[%clk 0:00:26]} 1-0

[Event "*** Titled Tuesday 3|2 Blitz"]
[Site "Chess.com"]
[Date "2016.07.05"]
[Round "3"]
[White "David_Klein"]
[Black "twofoxniel"]
[Result "0-1"]
[WhiteElo "2405"]
[BlackElo "2527"]
[TimeControl "180+2"]
[EndTime "11:35:24 PDT"]
[Termination "twofoxniel won by resignation"]

1. e4 {[%clk 0:03:01.9]} 1... d5 {[%clk 0:03:00.4]} 2. exd5 {[%clk 0:03:02.7]}
2... Nf6 {[%clk 0:03:01.6]} 3. d4 {[%clk 0:03:03.7]} 3... Bg4 {[%clk 0:03:01]}
4. f3 {[%clk 0:02:58.5]} 4... Bf5 {[%clk 0:03:02]} 5. Ne2 {[%clk 0:02:53.7]}
5... Nxd5 {[%clk 0:03:01.9]} 6. a3 {[%clk 0:02:49.6]} 6... e6 {[%clk 0:03:01.9]}
7. Ng3 {[%clk 0:02:50.4]} 7... Bg6 {[%clk 0:03:01.4]} 8. c4 {[%clk 0:02:51.7]}
8... Nf6 {[%clk 0:02:59.8]} 9. Nc3 {[%clk 0:02:52.3]} 9... Nc6 {[%clk
0:02:56.7]} 10. Be3 {[%clk 0:02:53.3]} 10... Bd6 {[%clk 0:02:56.5]} 11. Be2
{[%clk 0:02:53.8]} 11... O-O {[%clk 0:02:54.8]} 12. O-O {[%clk 0:02:52.8]} 12...
Bxg3 {[%clk 0:02:51.6]} 13. hxg3 {[%clk 0:02:52.5]} 13... a6 {[%clk 0:02:52.4]}
14. g4 {[%clk 0:02:51.5]} 14... Qd6 {[%clk 0:02:50.9]} 15. Qd2 {[%clk
0:02:31.4]} 15... Rad8 {[%clk 0:02:37.4]} 16. Rad1 {[%clk 0:02:31.3]} 16... h6
{[%clk 0:02:31.5]} 17. Bf2 {[%clk 0:02:24.1]} 17... e5 {[%clk 0:02:19.8]} 18. d5
{[%clk 0:02:23.6]} 18... e4 {[%clk 0:02:20.6]} 19. f4 {[%clk 0:02:12.5]} 19...
Rfe8 {[%clk 0:02:04.5]} 20. Be3 {[%clk 0:02:07.7]} 20... Ne7 {[%clk 0:01:41.2]}
21. f5 {[%clk 0:01:57]} 21... Bh7 {[%clk 0:01:41.4]} 22. Bf4 {[%clk 0:01:57.3]}
22... Qd7 {[%clk 0:01:42.3]} 23. Qe3 {[%clk 0:01:31.1]} 23... Nc8 {[%clk
0:01:34.3]} 24. Qg3 {[%clk 0:01:29]} 24... Nd6 {[%clk 0:01:11.9]} 25. c5 {[%clk
0:01:23.2]} 25... Nb5 {[%clk 0:01:11.1]} 26. Bxb5 {[%clk 0:01:19.7]} 26... axb5
{[%clk 0:01:11.9]} 27. Bxc7 {[%clk 0:01:15.5]} 27... Rc8 {[%clk 0:01:12.9]} 28.
Bd6 {[%clk 0:01:14.4]} 28... e3 {[%clk 0:01:12.6]} 29. Rde1 {[%clk 0:01:12.4]}
29... e2 {[%clk 0:01:10.3]} 30. Rxe2 {[%clk 0:01:11.6]} 30... Rxe2 {[%clk
0:01:09.9]} 31. Nxe2 {[%clk 0:01:13.5]} 31... Nxd5 {[%clk 0:01:11.1]} 32. Nf4
{[%clk 0:01:09.3]} 32... Nf6 {[%clk 0:01:00.8]} 33. Re1 {[%clk 0:01:06]} 33...
Qc6 {[%clk 0:00:53.2]} 34. Qf3 {[%clk 0:00:57.5]} 34... Qa6 {[%clk 0:00:51.3]}
35. Nd5 {[%clk 0:00:53.8]} 35... Nxd5 {[%clk 0:00:48.6]} 36. Qxd5 {[%clk
0:00:55.7]} 36... Qc6 {[%clk 0:00:41.9]} 37. Qxc6 {[%clk 0:00:48.6]} 37... bxc6
{[%clk 0:00:43]} 38. Re5 {[%clk 0:00:46.2]} 38... f6 {[%clk 0:00:43.6]} 39. Re7
{[%clk 0:00:44.1]} 39... Kh8 {[%clk 0:00:44.8]} 40. Kf2 {[%clk 0:00:43.6]} 40...
Bg8 {[%clk 0:00:45.7]} 41. g3 {[%clk 0:00:42.1]} 41... Bd5 {[%clk 0:00:46.1]}
42. Ke3 {[%clk 0:00:42.9]} 42... Ra8 {[%clk 0:00:45.8]} 43. Bf4 {[%clk
0:00:30.1]} 43... Ra4 {[%clk 0:00:45.7]} 44. Kd2 {[%clk 0:00:28]} 44... Rd4+
{[%clk 0:00:43.1]} 45. Ke3 {[%clk 0:00:23]} 45... Rc4 {[%clk 0:00:44.2]} 46.
Re8+ {[%clk 0:00:19.5]} 46... Kh7 {[%clk 0:00:44.8]} 47. Re7 {[%clk 0:00:20.9]}
47... Rxc5 {[%clk 0:00:43.8]} 48. Rc7 {[%clk 0:00:21.1]} 48... Rc4 {[%clk
0:00:44.3]} 49. Bd6 {[%clk 0:00:21.8]} 49... Rxg4 {[%clk 0:00:45.2]} 50. Kf2
{[%clk 0:00:22.3]} 50... Rg5 {[%clk 0:00:46.1]} 51. Bc5 {[%clk 0:00:17.4]} 51...
Rxf5+ {[%clk 0:00:47.1]} 52. Kg1 {[%clk 0:00:19.1]} 52... Rg5 {[%clk 0:00:47.8]}
53. Kh2 {[%clk 0:00:19.3]} 53... h5 {[%clk 0:00:49.1]} 54. Be3 {[%clk
0:00:19.2]} 54... Rg4 {[%clk 0:00:49.9]} 55. Bf2 {[%clk 0:00:19.7]} 55... Kg6
{[%clk 0:00:51]} 56. Rc8 {[%clk 0:00:20.3]} 56... Rc4 {[%clk 0:00:51.7]} 57. Kg1
{[%clk 0:00:21]} 57... Rc1+ {[%clk 0:00:52.6]} 0-1

[Event "*** Titled Tuesday 3|2 Blitz"]
[Site "Chess.com"]
[Date "2016.07.05"]
[Round "3"]
[White "yopino"]
[Black "GeorgMeier"]
[Result "1-0"]
[WhiteElo "2385"]
[BlackElo "2683"]
[TimeControl "180+2"]
[EndTime "11:35:50 PDT"]
[Termination "yopino won by resignation"]

1. e4 {[%clk 0:03:01.9]} 1... e6 {[%clk 0:03:01.3]} 2. d4 {[%clk 0:03:02.7]}
2... d5 {[%clk 0:03:02.9]} 3. Nd2 {[%clk 0:03:02.4]} 3... dxe4 {[%clk
0:03:03.9]} 4. Nxe4 {[%clk 0:03:01.6]} 4... Nd7 {[%clk 0:03:05.6]} 5. Nf3 {[%clk
0:02:56.6]} 5... Ngf6 {[%clk 0:03:07.5]} 6. Nxf6+ {[%clk 0:02:53.3]} 6... Nxf6
{[%clk 0:03:07.4]} 7. Bd3 {[%clk 0:02:52.6]} 7... c5 {[%clk 0:03:08.5]} 8. Be3
{[%clk 0:02:46.7]} 8... Qc7 {[%clk 0:03:09.2]} 9. Qe2 {[%clk 0:02:43.7]} 9... a6
{[%clk 0:03:10.5]} 10. O-O {[%clk 0:02:39.5]} 10... b6 {[%clk 0:03:10.9]} 11.
Rad1 {[%clk 0:02:28.5]} 11... Bb7 {[%clk 0:03:09.5]} 12. dxc5 {[%clk 0:02:24.4]}
12... Bxc5 {[%clk 0:03:10.5]} 13. Bxc5 {[%clk 0:02:22.8]} 13... Qxc5 {[%clk
0:03:12.4]} 14. c3 {[%clk 0:02:16.9]} 14... O-O {[%clk 0:03:12.7]} 15. Ne5
{[%clk 0:02:16]} 15... Rfd8 {[%clk 0:03:13.5]} 16. Bc2 {[%clk 0:02:10.1]} 16...
h6 {[%clk 0:02:57.2]} 17. Rfe1 {[%clk 0:02:06.6]} 17... Rac8 {[%clk 0:02:39]}
18. a4 {[%clk 0:02:03.3]} 18... Qc7 {[%clk 0:02:34.6]} 19. f3 {[%clk 0:01:53.9]}
19... Qc5+ {[%clk 0:02:26]} 20. Kh1 {[%clk 0:01:53.4]} 20... Qc7 {[%clk
0:02:26]} 21. Kg1 {[%clk 0:01:50.9]} 21... a5 {[%clk 0:02:25.7]} 22. Qe3 {[%clk
0:01:47.4]} 22... Nd5 {[%clk 0:02:18.7]} 23. Qe4 {[%clk 0:01:43.7]} 23... Nf6
{[%clk 0:02:19.7]} 24. Qe3 {[%clk 0:01:43.9]} 24... Kf8 {[%clk 0:02:09.9]} 25.
Kh1 {[%clk 0:01:31]} 25... Nd5 {[%clk 0:01:51.5]} 26. Qd3 {[%clk 0:01:24]} 26...
Nf6 {[%clk 0:01:37.9]} 27. Qe3 {[%clk 0:01:25]} 27... Ba6 {[%clk 0:01:25.7]} 28.
Bb3 {[%clk 0:01:14.9]} 28... Rxd1 {[%clk 0:01:14.6]} 29. Rxd1 {[%clk 0:01:16.8]}
29... Rd8 {[%clk 0:01:15.4]} 30. Rxd8+ {[%clk 0:01:00.8]} 30... Qxd8 {[%clk
0:01:17.3]} 31. g3 {[%clk 0:00:58.1]} 31... Qd6 {[%clk 0:01:13]} 32. Kg2 {[%clk
0:00:59.2]} 32... Ke7 {[%clk 0:01:07.5]} 33. Bc4 {[%clk 0:01:00.4]} 33... Bb7
{[%clk 0:01:07.1]} 34. Bb5 {[%clk 0:00:54.5]} 34... Bd5 {[%clk 0:01:05.2]} 35.
Qd4 {[%clk 0:00:51.7]} 35... Qc5 {[%clk 0:00:43.8]} 36. Qxc5+ {[%clk 0:00:48.3]}
36... bxc5 {[%clk 0:00:45.7]} 37. Kf2 {[%clk 0:00:49.7]} 37... g5 {[%clk
0:00:46.6]} 38. Ke3 {[%clk 0:00:46.4]} 38... Nh7 {[%clk 0:00:16.1]} 39. Bc4
{[%clk 0:00:46.8]} 39... f6 {[%clk 0:00:12]} 40. Bxd5 {[%clk 0:00:46.9]} 40...
fxe5 {[%clk 0:00:13.3]} 41. Be4 {[%clk 0:00:37.2]} 41... Nf6 {[%clk 0:00:14.1]}
42. Kd3 {[%clk 0:00:34.4]} 42... Kd6 {[%clk 0:00:15.4]} 43. Kc4 {[%clk
0:00:30.9]} 43... g4 {[%clk 0:00:16]} 44. Kb5 {[%clk 0:00:27.6]} 44... gxf3
{[%clk 0:00:16.1]} 45. Bxf3 {[%clk 0:00:29.5]} 45... e4 {[%clk 0:00:17.8]} 46.
Be2 {[%clk 0:00:24.5]} 46... e3 {[%clk 0:00:16.6]} 47. Kxa5 {[%clk 0:00:25.3]}
47... Ne4 {[%clk 0:00:13.6]} 48. Kb5 {[%clk 0:00:23.3]} 48... Kd5 {[%clk
0:00:10.6]} 49. Bf3 {[%clk 0:00:18.5]} 49... Ke5 {[%clk 0:00:07.1]} 50. a5
{[%clk 0:00:15.5]} 50... Nd6+ {[%clk 0:00:06.5]} 51. Kxc5 {[%clk 0:00:12.5]}
51... Ne4+ {[%clk 0:00:07.8]} 52. Kc4 {[%clk 0:00:12.6]} 52... Nd2+ {[%clk
0:00:09.2]} 53. Kd3 {[%clk 0:00:13.8]} 53... Nxf3 {[%clk 0:00:10.5]} 54. Kxe3
{[%clk 0:00:14.9]} 54... Nxh2 {[%clk 0:00:10.4]} 55. a6 {[%clk 0:00:15]} 55...
Ng4+ {[%clk 0:00:11.8]} 56. Ke2 {[%clk 0:00:14.9]} 56... Kd6 {[%clk 0:00:10.2]}
57. a7 {[%clk 0:00:15.9]} 1-0

[Event "*** Titled Tuesday 3|2 Blitz"]
[Site "Chess.com"]
[Date "2016.07.05"]
[Round "3"]
[White "PowerThinking2650"]
[Black "oggy1984"]
[Result "0-1"]
[WhiteElo "2131"]
[BlackElo "2304"]
[TimeControl "180+2"]
[EndTime "11:36:17 PDT"]
[Termination "oggy1984 won on time"]

1. e4 {[%clk 0:03:01.9]} 1... c6 {[%clk 0:03:00.7]} 2. d4 {[%clk 0:03:02.2]}
2... d5 {[%clk 0:03:01.5]} 3. Nc3 {[%clk 0:03:03.7]} 3... dxe4 {[%clk
0:03:02.4]} 4. Nxe4 {[%clk 0:03:04.4]} 4... Nf6 {[%clk 0:03:03.9]} 5. Nxf6+
{[%clk 0:03:05]} 5... exf6 {[%clk 0:03:05.8]} 6. c3 {[%clk 0:03:06.9]} 6... Bd6
{[%clk 0:03:07.1]} 7. Bd3 {[%clk 0:03:08.1]} 7... O-O {[%clk 0:03:08.2]} 8. Qc2
{[%clk 0:03:08]} 8... Re8+ {[%clk 0:03:05.8]} 9. Ne2 {[%clk 0:03:08.5]} 9... h6
{[%clk 0:03:05.1]} 10. O-O {[%clk 0:03:00.3]} 10... Qc7 {[%clk 0:03:02.8]} 11.
Ng3 {[%clk 0:03:00.5]} 11... h5 {[%clk 0:02:41.3]} 12. Rd1 {[%clk 0:02:43.6]}
12... h4 {[%clk 0:02:40.4]} 13. Nf1 {[%clk 0:02:44.5]} 13... h3 {[%clk
0:02:37.7]} 14. g3 {[%clk 0:02:42.4]} 14... Bg4 {[%clk 0:02:37.7]} 15. Bf5
{[%clk 0:02:24.3]} 15... Bxd1 {[%clk 0:02:33.6]} 16. Qxd1 {[%clk 0:02:25.1]}
16... Nd7 {[%clk 0:02:24.2]} 17. Qg4 {[%clk 0:02:22.1]} 17... Nf8 {[%clk
0:02:24.6]} 18. Qxh3 {[%clk 0:02:20.8]} 18... Re1 {[%clk 0:02:00]} 19. Rb1
{[%clk 0:02:21.1]} 19... Rae8 {[%clk 0:01:54.9]} 20. Be3 {[%clk 0:02:21]} 20...
Rxb1 {[%clk 0:01:50.4]} 21. Bxb1 {[%clk 0:02:21.4]} 21... Qb6 {[%clk 0:01:49.9]}
22. b4 {[%clk 0:02:16.5]} 22... a5 {[%clk 0:01:48.9]} 23. a3 {[%clk 0:02:17]}
23... axb4 {[%clk 0:01:49.2]} 24. axb4 {[%clk 0:02:18.1]} 24... Qa6 {[%clk
0:01:49.9]} 25. Qf5 {[%clk 0:02:07.3]} 25... Qa1 {[%clk 0:01:47.6]} 26. Qd3
{[%clk 0:02:00.3]} 26... Qb2 {[%clk 0:01:39.2]} 27. Nd2 {[%clk 0:01:52.6]} 27...
Bc7 {[%clk 0:01:34.1]} 28. Nc4 {[%clk 0:01:51.4]} 28... Qa1 {[%clk 0:01:19]} 29.
Kg2 {[%clk 0:01:46.7]} 29... g6 {[%clk 0:01:10.3]} 30. h4 {[%clk 0:01:45.1]}
30... f5 {[%clk 0:01:11]} 31. Bc2 {[%clk 0:01:40.9]} 31... Qa8 {[%clk
0:01:04.7]} 32. Bb3 {[%clk 0:01:41]} 32... Ne6 {[%clk 0:01:03]} 33. f4 {[%clk
0:01:34.4]} 33... Qa1 {[%clk 0:00:59.9]} 34. h5 {[%clk 0:01:29.8]} 34... Kg7
{[%clk 0:00:57.6]} 35. Nd2 {[%clk 0:00:59]} 35... Rh8 {[%clk 0:00:50.3]} 36.
Bxe6 {[%clk 0:00:52.4]} 36... fxe6 {[%clk 0:00:44.5]} 37. d5 {[%clk 0:00:47.1]}
37... Rxh5 {[%clk 0:00:44.5]} 38. Qd4+ {[%clk 0:00:41.1]} 38... Kh7 {[%clk
0:00:38.9]} 39. Bg1 {[%clk 0:00:35.4]} 39... Qa2 {[%clk 0:00:16.9]} 40. d6
{[%clk 0:00:34.4]} 40... Bd8 {[%clk 0:00:16.6]} 41. c4 {[%clk 0:00:34.2]} 41...
g5 {[%clk 0:00:15.6]} 42. Bf2 {[%clk 0:00:31.8]} 42... gxf4 {[%clk 0:00:16.3]}
43. gxf4 {[%clk 0:00:30.6]} 43... Rh6 {[%clk 0:00:17]} 44. d7 {[%clk 0:00:17.4]}
44... Rg6+ {[%clk 0:00:17.4]} 45. Kf1 {[%clk 0:00:12.3]} 45... Rg7 {[%clk
0:00:16]} 46. Nf3 {[%clk 0:00:09.2]} 46... Qb1+ {[%clk 0:00:15.8]} 47. Ke2
{[%clk 0:00:09.7]} 47... Qc2+ {[%clk 0:00:15.5]} 48. Ke3 {[%clk 0:00:07.1]}
48... Qe4+ {[%clk 0:00:15.8]} 49. Qxe4 {[%clk 0:00:07.5]} 49... fxe4 {[%clk
0:00:17.7]} 50. Ne5 {[%clk 0:00:08.5]} 50... Bf6 {[%clk 0:00:18.5]} 51. Kxe4
{[%clk 0:00:04.3]} 51... Bxe5 {[%clk 0:00:19.3]} 52. Kxe5 {[%clk 0:00:05.6]}
52... Rxd7 {[%clk 0:00:20.8]} 53. Bc5 {[%clk 0:00:06]} 53... Rf7 {[%clk
0:00:20.4]} 54. Kxe6 {[%clk 0:00:04.4]} 54... Rxf4 {[%clk 0:00:20.5]} 55. b5
{[%clk 0:00:04.3]} 55... Rxc4 {[%clk 0:00:20.8]} 0-1